lending/lending_fUSD_20250719
["ID","MTS","AMOUNT","RATE_DAILY","PERIOD"]
[373368082,1752969095942,-512.67,0.00020054,2]
[373368083,1752969095952,-200.378326,0.00020054,2]
[373368084,1752969095961,-200.378322,0.00020054,2]
[373368085,1752969095970,-151.0,0.00020054,2]
[373368086,1752969095979,-480.0,0.00020054,2]
[373368087,1752969095988,-151.0,0.00020054,2]
[373368088,1752969095999,-151.0,0.00020054,2]
[373368089,1752969096009,-480.0,0.00020054,2]
[373368090,1752969096018,-480.0,0.00020054,2]
[373368091,1752969096027,-151.0,0.00020054,2]
[373368092,1752969096037,-480.0,0.00020054,2]
[373368093,1752969096046,-480.0,0.00020054,2]
[373368094,1752969096055,-480.0,0.00020054,2]
[373368095,1752969096064,-480.0,0.00020054,2]
[373368096,1752969096073,-480.0,0.00020054,2]
[373368097,1752969096083,-480.0,0.00020054,2]
[373368098,1752969096092,-343.07,0.00020054,2]
[373368099,1752969096101,-480.0,0.00020054,2]
[373368100,1752969096110,-480.0,0.00020054,2]
[373368101,1752969096120,-1432.69,0.00020054,2]
[373368102,1752969096130,-480.0,0.00020054,2]
[373368103,1752969096140,-275.08289964,0.00020054,2]
[373368104,1752969096149,-480.0,0.00020054,2]
[373368105,1752969096160,-480.0,0.00020054,2]
[373368106,1752969096169,-480.0,0.00020054,2]
[373368107,1752969096179,-480.0,0.00020054,2]
[373368108,1752969096188,-480.0,0.00020054,2]
[373368109,1752969096199,-525.05,0.00020054,2]
[373368110,1752969096208,-739.94,0.00020054,2]
[373368111,1752969096218,-597.34,0.00020054,2]
[373368112,1752969096227,-595.53,0.00020054,2]
[373368113,1752969096237,-562.7,0.00020054,2]
[373368114,1752969096246,-480.0,0.00020054,2]
[373368115,1752969096256,-480.0,0.00020054,2]
[373368116,1752969096265,-725.42,0.00020054,2]
[373368117,1752969096274,-480.0,0.00020054,2]
[373368118,1752969096283,-480.0,0.00020054,2]
[373368119,1752969096292,-1026.84,0.00020054,2]
[373368120,1752969096302,-480.0,0.00020054,2]
[373368121,1752969096311,-480.0,0.00020054,2]
[373368122,1752969096321,-480.0,0.00020054,2]
[373368123,1752969096331,-480.0,0.00020054,2]
[373368124,1752969096340,-480.0,0.00020054,2]
[373368125,1752969096349,-985.98,0.00020054,2]
[373368126,1752969096359,-480.0,0.00020054,2]
[373368127,1752969096368,-480.0,0.00020054,2]
[373368128,1752969096379,-480.0,0.00020054,2]
[373368129,1752969096390,-480.0,0.00020054,2]
[373368130,1752969096400,-480.0,0.00020054,2]
[373368131,1752969096412,-480.0,0.00020054,2]
[373368132,1752969096422,-711.26,0.00020054,2]
[373368133,1752969096431,-723.22,0.00020054,2]
[373368134,1752969096441,-480.0,0.00020054,2]
[373368135,1752969096450,-480.0,0.00020054,2]
[373368136,1752969096461,-480.0,0.00020054,2]
[373368137,1752969096471,-480.0,0.00020054,2]
[373368138,1752969096481,-813.19,0.00020054,2]
[373368139,1752969096491,-480.0,0.00020054,2]
[373368140,1752969096500,-552.67,0.00020054,2]
[373368141,1752969096512,-480.0,0.00020054,2]
[373368142,1752969096521,-480.0,0.00020054,2]
[373368143,1752969096531,-480.0,0.00020054,2]
[373368144,1752969096541,-553.94,0.00020054,2]
[373368145,1752969096552,-480.0,0.00020054,2]
[373368146,1752969096563,-480.0,0.00020054,2]
[373368147,1752969096573,-480.0,0.00020054,2]
[373368148,1752969096582,-808.09,0.00020054,2]
[373368149,1752969096775,-480.0,0.00020054,2]
[373368150,1752969096785,-1118.97,0.00020054,2]
[373368151,1752969096795,-480.0,0.00020054,2]
[373368152,1752969096805,-480.0,0.00020054,2]
[373368153,1752969096814,-480.0,0.00020054,2]
[373368154,1752969096824,-480.0,0.00020054,2]
[373368155,1752969096834,-480.0,0.00020054,2]
[373368156,1752969096845,-737.81,0.00020054,2]
[373368157,1752969096854,-480.0,0.00020054,2]
[373368158,1752969096864,-480.0,0.00020054,2]
[373368159,1752969096873,-480.0,0.00020054,2]
[373368160,1752969096883,-480.0,0.00020054,2]
[373368161,1752969096892,-480.0,0.00020054,2]
[373368162,1752969096902,-429.36386603,0.00020054,2]
[373368163,1752969096911,-480.0,0.00020054,2]
[373368164,1752969096920,-480.0,0.00020054,2]
[373368165,1752969096930,-603.91,0.00020054,2]
[373368166,1752969096940,-624.05,0.00020054,2]
[373368167,1752969096949,-598.17,0.00020054,2]
[373368168,1752969096958,-480.0,0.00020054,2]
[373368169,1752969096969,-480.0,0.00020054,2]
[373368170,1752969096983,-480.0,0.00020054,2]
[373368171,1752969096994,-748.04,0.00020054,2]
[373368172,1752969097005,-1079.43,0.00020054,2]
[373368173,1752969097015,-1769.09,0.00020054,2]
[373368174,1752969097026,-480.0,0.00020054,2]
[373368175,1752969097036,-864.0,0.00020054,2]
[373368176,1752969097046,-573.4,0.00020054,2]
[373368177,1752969097056,-505.35,0.00020054,2]
[373368178,1752969097065,-160.98,0.00020054,2]
[373368179,1752969097075,-480.0,0.00020054,2]
[373368180,1752969097085,-480.0,0.00020054,2]
[373368181,1752969097094,-452.96,0.00020054,2]
[373368182,1752969097103,-558.24,0.00020054,2]
[373368183,1752969097112,-480.0,0.00020054,2]
[373368184,1752969097121,-480.0,0.00020054,2]
[373368185,1752969097131,-978.33,0.00020054,2]
[373368186,1752969097140,-480.0,0.00020054,2]
[373368187,1752969097150,-480.0,0.00020054,2]
[373368188,1752969097160,-480.0,0.00020054,2]
[373368189,1752969097169,-580.33480798,0.00020054,2]
[373368190,1752969097179,-480.0,0.00020054,2]
[373368191,1752969097188,-480.0,0.00020054,2]
[373368192,1752969097198,-1583.23,0.00020054,2]
[373368193,1752969097207,-480.0,0.00020054,2]
[373368194,1752969097217,-480.0,0.00020054,2]
[373368195,1752969097227,-480.0,0.00020054,2]
[373368196,1752969097236,-480.0,0.00020054,2]
[373368197,1752969097245,-480.0,0.00020054,2]
[373368198,1752969097255,-775.67,0.00020054,2]
[373368199,1752969097265,-946.16,0.00020054,2]
[373368200,1752969097274,-480.0,0.00020054,2]
[373368201,1752969097284,-481.74,0.00020054,2]
[373368202,1752969097294,-673.5,0.00020054,2]
[373368203,1752969097304,-869.48,0.00020054,2]
[373368204,1752969097314,-480.0,0.00020054,2]
[373368205,1752969097324,-480.0,0.00020054,2]
[373368206,1752969097333,-480.0,0.00020054,2]
[373368207,1752969097343,-480.0,0.00020054,2]
[373368208,1752969097353,-480.0,0.00020054,2]
[373368209,1752969097362,-507.9,0.00020054,2]
[373368210,1752969097371,-480.0,0.00020054,2]
[373368211,1752969097381,-480.0,0.00020054,2]
[373368212,1752969097390,-933.7,0.00020054,2]
[373368213,1752969097400,-480.0,0.00020054,2]
[373368214,1752969097410,-600.66,0.00020054,2]
[373368215,1752969097420,-480.0,0.00020054,2]
[373368216,1752969097429,-480.0,0.00020054,2]
[373368217,1752969097439,-804.46,0.00020054,2]
[373368218,1752969097448,-480.0,0.00020054,2]
[373368219,1752969097457,-663.81,0.00020054,2]
[373368220,1752969097466,-480.0,0.00020054,2]
[373368221,1752969097476,-480.0,0.00020054,2]
[373368222,1752969097486,-449.48,0.00020054,2]
[373368223,1752969097495,-480.0,0.00020054,2]
[373368224,1752969097505,-480.0,0.00020054,2]
[373368225,1752969097514,-602.12,0.00020054,2]
[373368226,1752969097523,-480.0,0.00020054,2]
[373368227,1752969097533,-613.07,0.00020054,2]
[373368228,1752969097542,-770.09,0.00020054,2]
[373368229,1752969097551,-1303.77,0.00020054,2]
[373368230,1752969097560,-480.0,0.00020054,2]
[373368231,1752969097570,-508.03,0.00020054,2]
[373368232,1752969097579,-563.66,0.00020054,2]
[373368233,1752969097588,-480.0,0.00020054,2]
[373368234,1752969097598,-959.83,0.00020054,2]
[373368235,1752969097610,-480.0,0.00020054,2]
[373368236,1752969097620,-391.78000551,0.00020054,2]
[373368237,1752969097630,-693.06,0.00020054,2]
[373368238,1752969097639,-1481.71,0.00020054,2]
[373368239,1752969097649,-540.35,0.00020054,2]
[373368240,1752969097662,-480.0,0.00020054,2]
[373368241,1752969097671,-480.0,0.00020054,2]
[373368242,1752969097680,-480.0,0.00020054,2]
[373368243,1752969097689,-480.0,0.00020054,2]
[373368244,1752969097698,-480.0,0.00020054,2]
[373368245,1752969097708,-480.0,0.00020054,2]
[373368246,1752969097717,-31606.63,0.00020054,2]
[373368247,1752969097727,-480.0,0.00020054,2]
[373368248,1752969097737,-522.45,0.00020054,2]
[373368249,1752969097746,-589.16,0.00020054,2]
[373368250,1752969097755,-665.15,0.00020054,2]
[373368251,1752969097765,-3819.61,0.00020054,2]
[373368252,1752969097774,-480.0,0.00020054,2]
[373368253,1752969097783,-511.88,0.00020054,2]
[373368254,1752969097792,-480.0,0.00020054,2]
[373368255,1752969097802,-1381.94,0.00020054,2]
[373368256,1752969097811,-582.98,0.00020054,2]
[373368257,1752969097820,-693.28,0.00020054,2]
[373368258,1752969097830,-412.22,0.00020054,2]
[373368259,1752969097839,-339.59423194,0.00020054,2]
[373368260,1752969097848,-740.08,0.00020054,2]
[373368261,1752969097858,-808.27,0.00020054,2]
[373368262,1752969097868,-3992.9,0.00020054,2]
[373368263,1752969097878,-480.0,0.00020054,2]
[373368264,1752969097887,-480.0,0.00020054,2]
[373368265,1752969097897,-669.4,0.00020054,2]
[373368266,1752969097907,-653.72,0.00020054,2]
[373368267,1752969097916,-1661.89,0.00020054,2]
[373368268,1752969097925,-600.13,0.00020054,2]
[373368269,1752969097935,-480.0,0.00020054,2]
[373368270,1752969097944,-577.71,0.00020054,2]
[373368271,1752969097953,-480.0,0.00020054,2]
[373368272,1752969097963,-1688.55,0.00020054,2]
[373368273,1752969097972,-3427.31,0.00020054,2]
[373368274,1752969097981,-480.0,0.00020054,2]
[373368275,1752969097991,-480.0,0.00020054,2]
[373368276,1752969098000,-2936.63,0.00020054,2]
[373368277,1752969098009,-1373.32,0.00020054,2]
[373368278,1752969098018,-693.68,0.00020054,2]
[373368279,1752969098027,-3278.32,0.00020054,2]
[373368280,1752969098036,-758.33,0.00020054,2]
[373368281,1752969098045,-1002.9,0.00020054,2]
[373368282,1752969098054,-2861.18,0.00020054,2]
[373368283,1752969098064,-2214.67,0.00020054,2]
[373368284,1752969098073,-480.0,0.00020054,2]
[373368285,1752969098082,-493.16,0.00020054,2]
[373368286,1752969098091,-2410.65,0.00020054,2]
[373368287,1752969098100,-480.0,0.00020054,2]
[373368288,1752969098110,-480.0,0.00020054,2]
[373368289,1752969098119,-1000.0,0.00020054,2]
[373368290,1752969098128,-480.0,0.00020054,2]
[373368291,1752969098137,-1529.67,0.00020054,2]
[373368292,1752969098147,-330.57116886,0.00020054,2]
[373368293,1752969098156,-757.31,0.00020054,2]
[373368294,1752969098165,-480.0,0.00020054,2]
[373368295,1752969098174,-1858.06,0.00020054,2]
[373368296,1752969098183,-918.64,0.00020054,2]
[373368297,1752969098192,-1198.99,0.00020054,2]
[373368298,1752969098201,-480.0,0.00020054,2]
[373368299,1752969098210,-1230.5,0.00020054,2]
[373368300,1752969098218,-789.78,0.00020054,2]
[373368301,1752969098227,-3176.18,0.00020054,2]
[373368302,1752969098237,-1404.13,0.00020054,2]
[373368303,1752969098246,-900.76,0.00020054,2]
[373368304,1752969098255,-3599.1,0.00020054,2]
[373368305,1752969098265,-480.0,0.00020054,2]
[373368306,1752969098274,-1121.97,0.00020054,2]
[373368307,1752969098283,-1870.61,0.00020054,2]
[373368308,1752969098292,-480.0,0.00020054,2]
[373368309,1752969098302,-480.0,0.00020054,2]
[373368310,1752969098311,-480.0,0.00020054,2]
[373368311,1752969098320,-798.59,0.00020054,2]
[373368312,1752969098329,-1257.9,0.00020054,2]
[373368313,1752969098339,-480.0,0.00020054,2]
[373368314,1752969098348,-686.13,0.00020054,2]
[373368315,1752969098357,-480.0,0.00020054,2]
[373368316,1752969098366,-1033.68,0.00020054,2]
[373368317,1752969098375,-480.0,0.00020054,2]
[373368318,1752969098384,-480.0,0.00020054,2]
[373368319,1752969098393,-2396.83,0.00020054,2]
[373368320,1752969098402,-1136.62,0.00020054,2]
[373368321,1752969098411,-1805.61,0.00020054,2]
[373368322,1752969098420,-906.66,0.00020054,2]
[373368323,1752969098429,-674.24,0.00020054,2]
[373368324,1752969098438,-847.36,0.00020054,2]
[373368325,1752969098447,-1106.58,0.00020054,2]
[373368326,1752969098456,-1696.34,0.00020054,2]
[373368327,1752969098465,-585.34,0.00020054,2]
[373368328,1752969098474,-563.35,0.00020054,2]
[373368329,1752969098483,-1030.85,0.00020054,2]
[373368330,1752969098492,-4439.75,0.00020054,2]
[373368331,1752969098501,-1856.23,0.00020054,2]
[373368332,1752969098511,-500.56,0.00020054,2]
[373368333,1752969098520,-2584.47,0.00020054,2]
[373368334,1752969098529,-480.0,0.00020054,2]
[373368335,1752969098538,-3913.18,0.00020054,2]
[373368336,1752969098547,-480.0,0.00020054,2]
[373368337,1752969098556,-530.62,0.00020054,2]
[373368338,1752969098566,-590.64,0.00020054,2]
[373368339,1752969098575,-480.0,0.00020054,2]
[373368340,1752969098585,-1002.3,0.00020054,2]
[373368341,1752969098594,-480.0,0.00020054,2]
[373368342,1752969098605,-1370.48,0.00020054,2]
[373368343,1752969098614,-947.08,0.00020054,2]
[373368344,1752969098624,-480.0,0.00020054,2]
[373368345,1752969098633,-1249.62,0.00020054,2]
[373368346,1752969098642,-480.0,0.00020054,2]
[373368347,1752969098652,-1338.78,0.00020054,2]
[373368348,1752969098662,-480.0,0.00020054,2]
[373368349,1752969098671,-711.6,0.00020054,2]
[373368350,1752969098680,-480.0,0.00020054,2]
[373368351,1752969098690,-480.0,0.00020054,2]
[373368352,1752969098699,-823.71,0.00020054,2]
[373368353,1752969098709,-736.37,0.00020054,2]
[373368354,1752969098718,-847.62,0.00020054,2]
[373368355,1752969098727,-661.84,0.00020054,2]
[373368356,1752969098737,-480.0,0.00020054,2]
[373368357,1752969098746,-1343.31,0.00020054,2]
[373368358,1752969098755,-1822.26,0.00020054,2]
[373368359,1752969098765,-4318.28,0.00020054,2]
[373368360,1752969098774,-480.0,0.00020054,2]
[373368361,1752969098783,-774.19,0.00020054,2]
[373368362,1752969098792,-2874.3,0.00020054,2]
[373368363,1752969098801,-480.0,0.00020054,2]
[373368364,1752969098811,-1174.49,0.00020054,2]
[373368365,1752969098820,-951.44,0.00020054,2]
[373368366,1752969098830,-1691.47,0.00020054,2]
[373368367,1752969098839,-630.63,0.00020054,2]
[373368368,1752969098849,-480.0,0.00020054,2]
[373368369,1752969098858,-1549.38,0.00020054,2]
[373368370,1752969098867,-700.07,0.00020054,2]
[373368371,1752969098876,-5716.84,0.00020054,2]
[373368372,1752969098885,-996.91,0.00020054,2]
[373368373,1752969098895,-677.52,0.00020054,2]
[373368374,1752969098904,-4831.41,0.00020054,2]
[373368375,1752969098915,-480.0,0.00020054,2]
[373368376,1752969098924,-704.05,0.00020054,2]
[373368377,1752969098933,-1263.65,0.00020054,2]
[373368378,1752969098942,-803.57,0.00020054,2]
[373368379,1752969098952,-480.0,0.00020054,2]
[373368380,1752969098961,-480.0,0.00020054,2]
[373368381,1752969098970,-6401.58,0.00020054,2]
[373368382,1752969098982,-1629.05,0.00020054,2]
[373368383,1752969098991,-833.26,0.00020054,2]
[373368384,1752969099001,-480.0,0.00020054,2]
[373368385,1752969099010,-480.0,0.00020054,2]
[373368386,1752969099019,-770.49,0.00020054,2]
[373368387,1752969099029,-1180.58,0.00020054,2]
[373368388,1752969099039,-1068.15,0.00020054,2]
[373368389,1752969099048,-513.42,0.00020054,2]
[373368390,1752969099059,-673.42,0.00020054,2]
[373368391,1752969099069,-1202.81,0.00020054,2]
[373368392,1752969099078,-1781.66,0.00020054,2]
[373368393,1752969099087,-480.0,0.00020054,2]
[373368394,1752969099096,-4542.83,0.00020054,2]
[373368395,1752969099105,-654.87,0.00020054,2]
[373368396,1752969099115,-480.0,0.00020054,2]
[373368397,1752969099124,-7527.29,0.00020054,2]
[373368398,1752969099133,-480.0,0.00020054,2]
[373368399,1752969099142,-1270.14,0.00020054,2]
[373368400,1752969099152,-572.8,0.00020054,2]
[373368401,1752969099161,-7286.77,0.00020054,2]
[373368402,1752969099171,-835.06,0.00020054,2]
[373368403,1752969099180,-590.03,0.00020054,2]
[373368404,1752969099189,-1098.09,0.00020054,2]
[373368405,1752969099199,-2403.03,0.00020054,2]
[373368406,1752969099207,-1423.29,0.00020054,2]
[373368407,1752969099217,-480.0,0.00020054,2]
[373368408,1752969099226,-1082.49,0.00020054,2]
[373368409,1752969099236,-2309.79,0.00020054,2]
[373368410,1752969099245,-758.68,0.00020054,2]
[373368411,1752969099254,-1362.51,0.00020054,2]
[373368412,1752969099263,-998.13,0.00020054,2]
[373368413,1752969099272,-1176.16,0.00020054,2]
[373368414,1752969099282,-1187.56,0.00020054,2]
[373368415,1752969099291,-5455.89,0.00020054,2]
[373368416,1752969099300,-712.89,0.00020054,2]
[373368417,1752969099309,-523.74,0.00020054,2]
[373368418,1752969099318,-1065.39,0.00020054,2]
[373368419,1752969099327,-480.0,0.00020054,2]
[373368420,1752969099336,-2390.04,0.00020054,2]
[373368421,1752969099345,-2407.98,0.00020054,2]
[373368422,1752969099354,-480.0,0.00020054,2]
[373368423,1752969099363,-2070.52,0.00020054,2]
[373368424,1752969099373,-1594.22,0.00020054,2]
[373368425,1752969099382,-480.0,0.00020054,2]
[373368426,1752969099391,-1711.58,0.00020054,2]
[373368427,1752969099401,-845.99,0.00020054,2]
[373368428,1752969099411,-2173.84,0.00020054,2]
[373368429,1752969099420,-933.76,0.00020054,2]
[373368430,1752969099429,-480.0,0.00020054,2]
[373368431,1752969099438,-631.99,0.00020054,2]
[373368432,1752969099447,-643.33,0.00020054,2]
[373368433,1752969099457,-1082.59,0.00020054,2]
[373368434,1752969099466,-500.87530011,0.00020054,2]
[373368435,1752969099475,-480.0,0.00020054,2]
[373368436,1752969099484,-480.0,0.00020054,2]
[373368437,1752969099494,-951.96,0.00020054,2]
[373368438,1752969099503,-1341.37,0.00020054,2]
[373368439,1752969099512,-1364.53,0.00020054,2]
[373368440,1752969099522,-1264.86,0.00020054,2]
[373368441,1752969099531,-1205.5,0.00020054,2]
[373368442,1752969099540,-590.9,0.00020054,2]
[373368443,1752969099550,-2222.73,0.00020054,2]
[373368444,1752969099559,-606.34,0.00020054,2]
[373368445,1752969099569,-858.71,0.00020054,2]
[373368446,1752969099578,-480.0,0.00020054,2]
[373368447,1752969099587,-2113.9,0.00020054,2]
[373368448,1752969099596,-744.94,0.00020054,2]
[373368449,1752969099606,-1657.84,0.00020054,2]
[373368450,1752969099615,-489.11,0.00020054,2]
[373368451,1752969099624,-1369.89,0.00020054,2]
[373368452,1752969099633,-1296.25,0.00020054,2]
[373368453,1752969099642,-1298.9,0.00020054,2]
[373368454,1752969099651,-480.0,0.00020054,2]
[373368455,1752969099661,-480.0,0.00020054,2]
[373368456,1752969099670,-1137.97,0.00020054,2]
[373368457,1752969099680,-480.0,0.00020054,2]
[373368458,1752969099689,-480.0,0.00020054,2]
[373368459,1752969099699,-10867.87,0.00020054,2]
[373368460,1752969099709,-1221.92,0.00020054,2]
[373368461,1752969099718,-480.0,0.00020054,2]
[373368462,1752969099727,-150.0,0.00020068,2]
[373368463,1752969099736,-2351.0,0.00020077,2]
[373368464,1752969099746,-175.0,0.00020084,2]
[373368465,1752969099755,-161.08930749,0.00020086,2]
[373368466,1752969099764,-233.17545915,0.00020096,2]
[373368467,1752969099773,-500.0,0.00020096,2]
[373368468,1752969099782,-2370.0,0.00020096,2]
[373368469,1752969099792,-500.0,0.00020096,2]
[373368470,1752969099801,-251.81850766,0.00020096,2]
[373368471,1752969099810,-150.0,0.00020096,2]
[373368472,1752969099819,-500.0,0.00020096,2]
[373368473,1752969099829,-500.0,0.00020096,2]
[373368474,1752969099838,-1294.0,0.00020096,2]
[373368475,1752969100021,-1339.0,0.00020096,2]
[373368476,1752969100032,-500.0,0.00020096,2]
[373368477,1752969100041,-500.0,0.00020096,2]
[373368478,1752969100051,-4927.0,0.00020096,2]
[373368479,1752969100062,-150.0,0.00020129,2]
[373368480,1752969100071,-150.0,0.0002013,2]
[373368481,1752969100081,-199.09789,0.00020164,2]
[373368482,1752969100090,-151.0,0.00020164,2]
[373368483,1752969100099,-151.0,0.00020164,2]
[373368484,1752969100108,-166.771639,0.00020164,2]
[373368485,1752969100117,-166.771639,0.00020164,2]
[373368486,1752969100126,-152.929551,0.00020164,2]
[373368487,1752969100135,-151.0,0.00020164,2]
[373368488,1752969100145,-151.0,0.00020164,2]
[373368489,1752969100154,-177.347083,0.00020164,2]
[373368490,1752969100163,-151.0,0.00020164,2]
[373368491,1752969100171,-171.879904,0.00020164,2]
[373368492,1752969100181,-171.879904,0.00020164,2]
[373368493,1752969100190,-151.0,0.00020164,2]
[373368494,1752969100199,-151.738333,0.00020164,2]
[373368495,1752969100209,-151.0,0.00020164,2]
[373368496,1752969100218,-151.0,0.00020164,2]
[373368497,1752969100228,-151.0,0.00020164,2]
[373368498,1752969100237,-151.0,0.00020164,2]
[373368499,1752969100247,-383.900494,0.00020164,2]
[373368500,1752969100256,-409.308374,0.00020164,2]
[373368501,1752969100265,-364.762199,0.00020164,2]
[373368502,1752969100274,-151.0,0.00020164,2]
[373368503,1752969100284,-457.951232,0.00020164,2]
[373368504,1752969100293,-457.951232,0.00020164,2]
[373368505,1752969100302,-201.230558,0.00020164,2]
[373368506,1752969100312,-201.23055,0.00020164,2]
[373368507,1752969100321,-422.172838,0.00020164,2]
[373368508,1752969100330,-422.172828,0.00020164,2]
[373368509,1752969100339,-151.0,0.00020164,2]
[373368510,1752969100348,-512.67,0.00020164,2]
[373368511,1752969100358,-151.0,0.00020164,2]
[373368512,1752969100367,-480.0,0.00020164,2]
[373368513,1752969100376,-480.0,0.00020164,2]
[373368514,1752969100386,-483.76025411,0.00020164,2]
[373368515,1752969100395,-480.0,0.00020164,2]
[373368516,1752969100405,-613.44,0.00020164,2]
[373368517,1752969100415,-480.0,0.00020164,2]
[373368518,1752969100424,-424.19,0.00020164,2]
[373368519,1752969100433,-418.0,0.00020164,2]
[373368520,1752969100442,-480.0,0.00020164,2]
[373368521,1752969100451,-480.0,0.00020164,2]
[373368522,1752969100460,-480.0,0.00020164,2]
[373368523,1752969100469,-1432.69,0.00020164,2]
[373368524,1752969100479,-480.0,0.00020164,2]
[373368525,1752969100488,-480.0,0.00020164,2]
[373368526,1752969100497,-480.0,0.00020164,2]
[373368527,1752969100506,-480.0,0.00020164,2]
[373368528,1752969100515,-480.0,0.00020164,2]
[373368529,1752969100524,-480.0,0.00020164,2]
[373368530,1752969100534,-525.05,0.00020164,2]
[373368531,1752969100543,-597.34,0.00020164,2]
[373368532,1752969100552,-595.53,0.00020164,2]
[373368533,1752969100561,-562.7,0.00020164,2]
[373368534,1752969100570,-480.0,0.00020164,2]
[373368535,1752969100579,-480.0,0.00020164,2]
[373368536,1752969100589,-725.42,0.00020164,2]
[373368537,1752969100598,-480.0,0.00020164,2]
[373368538,1752969100608,-480.0,0.00020164,2]
[373368539,1752969100617,-1026.84,0.00020164,2]
[373368540,1752969100626,-480.0,0.00020164,2]
[373368541,1752969100635,-162.27438021,0.00020164,2]
[373368542,1752969100645,-480.0,0.00020164,2]
[373368543,1752969100655,-480.0,0.00020164,2]
[373368544,1752969100664,-480.0,0.00020164,2]
[373368545,1752969100674,-985.98,0.00020164,2]
[373368546,1752969100683,-480.0,0.00020164,2]
[373368547,1752969100692,-375.87066791,0.00020164,2]
[373368548,1752969100701,-185.52,0.00020164,2]
[373368549,1752969100712,-480.0,0.00020164,2]
[373368550,1752969100721,-480.0,0.00020164,2]
[373368551,1752969100731,-480.0,0.00020164,2]
[373368552,1752969100740,-711.26,0.00020164,2]
[373368553,1752969100750,-723.22,0.00020164,2]
[373368554,1752969100760,-480.0,0.00020164,2]
[373368555,1752969100770,-480.0,0.00020164,2]
[373368556,1752969100779,-480.0,0.00020164,2]
[373368557,1752969100788,-480.0,0.00020164,2]
[373368558,1752969100798,-813.19,0.00020164,2]
[373368559,1752969100807,-480.0,0.00020164,2]
[373368560,1752969100816,-552.67,0.00020164,2]
[373368561,1752969100825,-480.0,0.00020164,2]
[373368562,1752969100834,-480.0,0.00020164,2]
[373368563,1752969100843,-480.0,0.00020164,2]
[373368564,1752969100852,-553.94,0.00020164,2]
[373368565,1752969100862,-480.0,0.00020164,2]
[373368566,1752969100872,-480.0,0.00020164,2]
[373368567,1752969100884,-480.0,0.00020164,2]
[373368568,1752969100893,-808.09,0.00020164,2]
[373368569,1752969100902,-480.0,0.00020164,2]
[373368570,1752969100912,-1118.97,0.00020164,2]
[373368571,1752969100921,-480.0,0.00020164,2]
[373368572,1752969100931,-480.0,0.00020164,2]
[373368573,1752969100940,-480.0,0.00020164,2]
[373368574,1752969100950,-480.0,0.00020164,2]
[373368575,1752969100959,-480.0,0.00020164,2]
[373368576,1752969100968,-737.81,0.00020164,2]
[373368577,1752969100977,-480.0,0.00020164,2]
[373368578,1752969100989,-480.0,0.00020164,2]
[373368579,1752969100999,-480.0,0.00020164,2]
[373368580,1752969101008,-480.0,0.00020164,2]
[373368581,1752969101017,-480.0,0.00020164,2]